bitfinex-derivatives/quotes_BTCF0:USTF0_20240817
["timestamp","ask_amount","ask_price","bid_price","bid_amount"]
[1723886632783,0.06743129,59325.0,59324.0,0.11985057]
[1723886635484,0.06743129,59325.0,59324.0,0.10229444]
[1723886635678,0.06743129,59325.0,59324.0,0.11985189]
[1723886639177,0.02731837,59325.0,59324.0,0.11985189]
[1723886640179,0.08428617,59325.0,59324.0,0.11985189]
[1723886640780,0.08428617,59325.0,59324.0,0.11985184]
[1723886641285,0.08428617,59325.0,59324.0,0.21315184]
[1723886641580,0.06741923,59327.0,59325.0,0.50568]
[1723886641782,0.4541,59343.0,59326.0,0.47362012]
[1723886641783,1e-08,59328.0,59326.0,0.47362012]
[1723886641984,0.0933,59343.0,59327.0,4.88170082]
[1723886641985,0.08428023,59334.0,59327.0,4.88170082]
[1723886642281,0.0933,59341.0,59337.0,0.063185]
[1723886642282,0.08428023,59338.0,59337.0,0.063185]
[1723886642488,0.08428023,59340.0,59338.0,0.063184]
[1723886642674,0.08428023,59340.0,59339.0,0.03708665]
[1723886643278,0.08428023,59342.0,59339.0,0.03708665]
[1723886643583,0.08428023,59342.0,59340.0,0.03708665]
[1723886643781,0.08428023,59342.0,59341.0,0.03708665]
[1723886644183,0.08428023,59342.0,59340.0,0.0933]
[1723886644380,0.0933,59343.0,59341.0,0.39788407]
[1723886644579,0.0933,59343.0,59342.0,0.03708509]
[1723886645373,0.0933,59343.0,59340.0,0.156482]
[1723886645580,0.0933,59343.0,59341.0,0.03708524]
[1723886645780,0.0933,59343.0,59340.0,0.156482]
[1723886645982,0.01,59343.0,59341.0,0.03708545]
[1723886646182,0.0933,59341.0,59339.0,0.001]
[1723886646382,0.0933,59341.0,59334.0,0.16043413]
[1723886646383,0.05044272,59340.0,59337.0,0.05034771]
[1723886646588,0.0933,59338.0,59335.0,0.063187]
[1723886646788,0.0933,59338.0,59337.0,0.05027077]
[1723886646988,0.0933,59338.0,59337.0,0.03708815]
[1723886647189,0.41124272,59340.0,59336.0,0.063186]
[1723886647398,0.3608,59340.0,59338.0,0.05026985]
[1723886647889,0.05044272,59341.0,59338.0,0.05026985]
[1723886649389,0.05044272,59342.0,59338.0,0.05026985]
[1723886649587,0.0933,59339.0,59338.0,0.05026985]
[1723886649885,0.0933,59339.0,59338.0,0.05326985]
[1723886650093,0.0933,59339.0,59338.0,0.05426985]
[1723886650282,0.0933,59339.0,59338.0,0.004]
[1723886650484,0.0933,59339.0,59338.0,0.05426985]
[1723886650684,0.0933,59341.0,59338.0,0.004]
[1723886650889,0.0933,59341.0,59340.0,0.05025194]
[1723886652083,0.156478,59344.0,59340.0,0.14355194]
[1723886652281,0.156478,59344.0,59340.0,0.14354315]
[1723886652486,0.01006097,59345.0,59340.0,0.20672515]
[1723886652688,0.0933,59345.0,59341.0,0.05024315]
[1723886652991,0.0933,59342.0,59340.0,0.20672515]
[1723886653191,0.0933,59342.0,59340.0,0.156482]
[1723886655497,0.08428023,59344.0,59340.0,0.156482]
[1723886655688,0.17758023,59344.0,59340.0,0.156482]
[1723886656288,0.17758023,59344.0,59341.0,0.063181]
[1723886656487,0.01033484,59346.0,59343.0,0.0933]
[1723886656488,0.08428023,59345.0,59343.0,0.0933]
[1723886656684,0.08428023,59344.0,59343.0,0.0933]
[1723886656893,0.063174,59347.0,59343.0,0.0933]
[1723886656894,0.08428023,59345.0,59343.0,0.0933]
[1723886657091,0.08428023,59345.0,59342.0,0.06318]
[1723886657092,0.17758023,59344.0,59342.0,0.06318]
[1723886660199,0.17758023,59344.0,59341.0,0.0099489]
[1723886660200,0.0933,59344.0,59343.0,0.063179]
[1723886664005,0.0933,59344.0,59343.0,0.07340517]
[1723886665900,0.3608,59347.0,59343.0,0.07340517]
[1723886666109,0.0933,59344.0,59343.0,0.07340517]
[1723886667003,0.0933,59344.0,59343.0,0.063179]
[1723886667506,0.1033,59344.0,59343.0,0.063179]
[1723886668604,0.1033,59344.0,59343.0,0.11342215]
[1723886669398,0.1033,59344.0,59343.0,0.063179]
[1723886670096,0.1133,59344.0,59342.0,0.0503083]
[1723886670405,0.0494,59343.0,59342.0,0.0503083]
[1723886670606,0.243879,59343.0,59342.0,0.0503083]
[1723886671403,0.243879,59343.0,59340.0,0.06713413]
[1723886671703,0.0933,59341.0,59340.0,0.06713413]
[1723886671906,0.2833,59341.0,59340.0,0.06713413]
[1723886672710,0.346481,59341.0,59340.0,0.06713413]
[1723886673013,0.063182,59340.0,59338.0,0.06713413]
[1723886673200,0.083182,59340.0,59338.0,0.06713413]
[1723886673710,0.083182,59340.0,59339.0,0.06713413]
[1723886673912,0.156482,59340.0,59336.0,0.08399844]
[1723886674110,0.05051325,59339.0,59336.0,0.08399844]
[1723886674507,0.05051325,59339.0,59336.0,0.14718444]
[1723886675206,0.05051325,59337.0,59336.0,0.063186]
[1723886676116,0.05051325,59337.0,59336.0,0.07361479]
[1723886676316,0.05051325,59337.0,59336.0,0.16261323]
[1723886677214,0.05051325,59337.0,59336.0,0.07861479]
[1723886677414,0.05051325,59338.0,59336.0,0.32806465]
[1723886677618,0.05051325,59338.0,59337.0,0.03708548]
[1723886677916,0.0933,59340.0,59337.0,0.03708548]
[1723886678119,0.1033,59340.0,59336.0,0.16261323]
[1723886678411,0.1033,59340.0,59336.0,0.07861479]
[1723886678618,0.0933,59337.0,59336.0,0.07861479]
[1723886679017,0.0933,59337.0,59336.0,0.08261479]
[1723886679514,0.3133,59337.0,59336.0,0.04608721]
[1723886679711,0.6741,59337.0,59336.0,0.009]
[1723886680307,0.6741,59337.0,59336.0,0.004]
[1723886680516,0.6741,59337.0,59336.0,0.009]
[1723886680910,0.6741,59337.0,59336.0,0.07615237]
[1723886681123,0.3133,59337.0,59336.0,0.07615237]
[1723886681326,0.3133,59337.0,59336.0,0.009]
[1723886681923,0.6741,59337.0,59336.0,0.009]
[1723886682516,0.3133,59337.0,59336.0,0.009]
[1723886684722,0.36379487,59337.0,59336.0,0.009]
[1723886685220,0.36379487,59337.0,59336.0,0.04608791]
[1723886685221,0.3133,59337.0,59336.0,0.04608791]
[1723886685523,0.36379487,59337.0,59336.0,0.04608791]
[1723886685719,0.3133,59337.0,59336.0,0.04608791]
[1723886686523,0.063184,59338.0,59336.0,0.11324028]
[1723886686721,0.0933,59339.0,59337.0,0.10424028]
[1723886687023,0.05049487,59342.0,59338.0,0.03708791]
[1723886687225,0.05049487,59341.0,59339.0,0.10418007]
[1723886687430,0.05049487,59341.0,59340.0,0.03708791]
[1723886687621,0.14379487,59341.0,59340.0,0.03708791]
[1723886688519,0.1033,59341.0,59339.0,0.06709216]
[1723886688723,0.0504896,59340.0,59339.0,0.06709216]
[1723886688926,0.0504896,59340.0,59339.0,0.1041784]
[1723886690226,0.0504896,59340.0,59339.0,0.1051784]
[1723886691337,0.17758023,59341.0,59339.0,0.03808624]
[1723886691532,0.17758023,59341.0,59340.0,0.03708624]
[1723886691723,0.18758023,59341.0,59340.0,0.03708624]
[1723886692817,0.1033,59341.0,59340.0,0.03708624]
[1723886693327,0.18758023,59341.0,59340.0,0.03708624]
[1723886693526,0.1033,59341.0,59340.0,0.03708624]
[1723886693829,0.18746481,59341.0,59340.0,0.03708624]
[1723886694623,0.1033,59341.0,59340.0,0.03708624]
[1723886695022,0.18746481,59341.0,59340.0,0.03708624]
[1723886695233,0.17746481,59341.0,59340.0,0.03708624]
[1723886695425,0.19746481,59341.0,59340.0,0.03708624]
[1723886696027,0.17746481,59341.0,59340.0,0.03708624]
[1723886696733,0.0933,59341.0,59340.0,0.03708624]
[1723886697131,0.17746481,59341.0,59340.0,0.03708624]
[1723886697428,0.0933,59341.0,59340.0,0.03708624]
[1723886699137,0.17746481,59343.0,59340.0,0.03708624]
[1723886699333,0.17746481,59343.0,59341.0,0.10026724]
[1723886699527,0.14381173,59343.0,59342.0,0.03708624]
[1723886699723,0.0933,59343.0,59342.0,0.03708624]
[1723886699928,0.14381173,59343.0,59342.0,0.03708624]
[1723886700728,0.0933,59343.0,59342.0,0.03708624]
[1723886701424,0.0933,59343.0,59342.0,0.03708375]
[1723886703228,0.06734314,59346.0,59342.0,0.03708375]
[1723886703428,0.09734314,59346.0,59343.0,0.10416625]
[1723886703625,0.09734314,59346.0,59344.0,0.03708375]
[1723886703829,0.09734314,59346.0,59343.0,0.0670825]
[1723886704027,0.0933,59344.0,59343.0,0.0670825]
[1723886704329,0.0933,59344.0,59343.0,0.10416649]
[1723886704932,0.14379845,59344.0,59343.0,0.10416649]
[1723886705145,0.0933,59344.0,59343.0,0.10416649]
[1723886706352,0.14379515,59344.0,59343.0,0.10416649]
[1723886706540,0.17746481,59344.0,59343.0,0.03708399]
[1723886707542,0.0933,59344.0,59343.0,0.03708399]
[1723886710234,0.0933,59344.0,59343.0,0.10026299]
[1723886712735,0.0933,59344.0,59343.0,0.15006299]
[1723886713141,0.0933,59344.0,59343.0,0.15006224]
[1723886713950,0.0933,59344.0,59343.0,0.10026224]
[1723886714442,0.14380752,59344.0,59343.0,0.10026224]
[1723886714849,0.16380752,59344.0,59343.0,0.10026224]
[1723886716353,0.1133,59344.0,59343.0,0.10026224]
[1723886717146,0.0933,59344.0,59343.0,0.10026224]
[1723886723954,0.0933,59344.0,59343.0,0.063179]
[1723886724162,0.0933,59344.0,59343.0,0.10026224]
[1723886725249,0.0933,59344.0,59343.0,0.063179]
[1723886725450,0.0933,59344.0,59343.0,0.10026224]
[1723886727467,0.0933,59344.0,59343.0,0.18426068]
[1723886728559,0.0933,59344.0,59343.0,0.31261928]
[1723886729160,0.06734336,59346.0,59343.0,0.31261928]
[1723886729358,0.25734336,59346.0,59344.0,0.03708324]
[1723886729662,0.0933,59344.0,59343.0,0.11353836]
[1723886729862,0.12060938,59344.0,59343.0,0.1506216]
[1723886730568,0.0933,59344.0,59343.0,0.10026224]
[1723886730760,0.1775511,59344.0,59343.0,0.10026224]
[1723886731154,0.1775511,59344.0,59343.0,0.11780014]
[1723886732955,0.1775511,59344.0,59343.0,0.11780003]
[1723886735366,0.0842511,59344.0,59343.0,0.11780003]
[1723886735569,0.0842511,59345.0,59343.0,0.18494584]
[1723886735867,0.0842511,59345.0,59344.0,0.14792103]
[1723886736257,0.0842511,59346.0,59344.0,0.14792103]
[1723886736458,0.0842511,59346.0,59345.0,0.05462103]
[1723886736662,0.06740052,59347.0,59345.0,0.05462103]
[1723886736868,0.06740052,59347.0,59344.0,0.24047544]
[1723886736869,0.06740052,59347.0,59346.0,0.05462103]
[1723886737069,0.06740052,59347.0,59346.0,0.05461958]
[1723886739162,0.22387452,59348.0,59346.0,0.05461958]
[1723886739366,0.16070052,59348.0,59347.0,0.03708203]
[1723886739957,0.0933,59348.0,59347.0,0.03708203]
[1723886740867,0.06739178,59348.0,59347.0,0.03708203]
[1723886741070,0.16069178,59349.0,59347.0,0.10025603]
[1723886741260,0.16069178,59349.0,59348.0,0.063173]
[1723886741465,0.16069178,59349.0,59348.0,0.10025497]
[1723886741868,0.06739178,59349.0,59348.0,0.10025497]
[1723886742068,0.16069178,59351.0,59348.0,0.10025497]
[1723886742369,0.0933,59351.0,59349.0,0.03708197]
[1723886742674,0.05053112,59350.0,59348.0,0.14717144]
[1723886742978,0.05053112,59350.0,59349.0,0.03707894]
[1723886743269,0.0933,59351.0,59349.0,0.03707894]
[1723886743467,0.0933,59351.0,59350.0,0.10024994]
[1723886743668,0.12060617,59351.0,59350.0,0.10024994]
[1723886744261,0.02730617,59351.0,59350.0,0.10024994]
[1723886744462,0.21128614,59356.0,59351.0,0.063169]
[1723886744463,0.0933,59353.0,59351.0,0.063169]
[1723886744666,0.06010301,59352.0,59351.0,0.063169]
[1723886744871,0.02730605,59352.0,59351.0,3.98194179]
[1723886745075,0.08417696,59352.0,59351.0,3.98194179]
[1723886745370,0.06729933,59352.0,59351.0,3.8633]
[1723886745577,0.06730084,59352.0,59351.0,4.0451013]
[1723886745773,0.02008391,59352.0,59351.0,5.0010813]
[1723886746077,0.08417696,59357.0,59351.0,4.9881701]
[1723886746276,0.0933,59364.0,59357.0,0.063164]
[1723886746277,0.08417696,59359.0,59357.0,0.063164]
[1723886746478,0.08417696,59360.0,59359.0,0.063162]
[1723886746680,0.08417696,59360.0,59359.0,0.19353376]
[1723886747370,0.08417696,59362.0,59360.0,0.06316]
[1723886747568,0.08417696,59362.0,59361.0,0.03707176]
[1723886748978,0.08417696,59362.0,59360.0,0.07355142]
[1723886749178,0.08417696,59363.0,59361.0,0.064159]
[1723886749482,0.08417696,59363.0,59362.0,0.0933]
[1723886749676,0.02730058,59363.0,59361.0,0.001]
[1723886749889,0.0933,59362.0,59361.0,0.001]
[1723886750079,0.12060214,59362.0,59361.0,0.001]
[1723886751181,0.0933,59362.0,59361.0,0.001]
[1723886751570,0.0933,59362.0,59360.0,0.001]
[1723886751782,0.0933,59362.0,59360.0,0.002]
[1723886752486,0.0933,59362.0,59361.0,0.001]
[1723886753281,0.0933,59362.0,59360.0,0.002]
[1723886753490,0.0933,59362.0,59361.0,0.001]
[1723886755087,0.0933,59362.0,59361.0,0.002]
[1723886755990,0.3608,59363.0,59361.0,0.001]
[1723886756192,0.0933,59362.0,59361.0,0.001]
[1723886756787,0.3608,59363.0,59361.0,0.001]
[1723886757090,0.4541,59363.0,59361.0,0.001]
[1723886758290,0.4541,59363.0,59361.0,0.064159]
[1723886759086,0.3608,59363.0,59361.0,0.157459]
[1723886759496,0.0933,59362.0,59361.0,0.064159]
[1723886759992,0.0933,59362.0,59361.0,0.1204178]
[1723886761488,0.05037658,59368.0,59364.0,0.063156]
[1723886761791,0.0933,59367.0,59364.0,0.156456]
[1723886764189,0.3608,59370.0,59366.0,0.0933]
[1723886765179,0.3608,59370.0,59368.0,0.063152]
[1723886767193,0.3608,59370.0,59369.0,0.0933]
[1723886769589,0.046,59372.0,59369.0,0.0933]
[1723886769794,0.3608,59370.0,59369.0,0.0933]
[1723886770293,0.09637658,59372.0,59369.0,0.0933]
[1723886770499,0.3608,59370.0,59369.0,0.0933]
[1723886771492,0.3608,59370.0,59369.0,0.156451]
[1723886772197,0.3608,59370.0,59369.0,0.20660718]
[1723886773295,0.41125276,59370.0,59369.0,0.20670122]
[1723886773498,0.41125276,59370.0,59369.0,0.156451]
[1723886774189,0.3608,59370.0,59369.0,0.20670122]
[1723886776193,0.52725,59370.0,59368.0,0.05025022]
[1723886776393,0.0485,59369.0,59367.0,0.05025022]
[1723886776594,0.0933,59368.0,59367.0,0.05025022]
[1723886776797,0.1133,59368.0,59367.0,0.05025022]
[1723886778891,0.4741,59368.0,59367.0,0.05025022]
[1723886779201,0.4541,59368.0,59365.0,0.06709536]
[1723886779502,0.05047179,59367.0,59365.0,0.06709536]
[1723886780002,0.05047179,59366.0,59364.0,0.14044235]
[1723886780197,0.05047179,59367.0,59365.0,0.06709536]
[1723886780502,0.05047179,59367.0,59364.0,0.16664699]
[1723886780503,0.05047179,59366.0,59364.0,0.23374235]
[1723886781287,0.05047179,59366.0,59365.0,0.06709536]
[1723886782503,0.41127179,59367.0,59365.0,0.063155]
[1723886783204,0.05047179,59366.0,59365.0,0.13025036]
[1723886783803,0.41127179,59367.0,59365.0,0.13018584]
[1723886784206,0.41127179,59367.0,59366.0,0.06703084]
[1723886786400,0.3608,59367.0,59366.0,0.06703084]
[1723886786604,0.0933,59370.0,59366.0,0.13018484]
[1723886786797,0.4541,59370.0,59369.0,0.05027236]
[1723886787808,0.0933,59370.0,59367.0,0.13018384]
[1723886788011,0.4541,59370.0,59367.0,0.13018384]
[1723886788305,0.4541,59370.0,59368.0,0.063152]
[1723886788607,0.3608,59370.0,59368.0,0.156452]
[1723886789605,0.3608,59370.0,59368.0,0.22348284]
[1723886790508,0.3608,59370.0,59369.0,0.03706984]
[1723886790709,0.08396096,59373.0,59369.0,0.03706984]
[1723886790901,0.3608,59370.0,59368.0,0.22348284]
[1723886791101,0.3608,59370.0,59369.0,0.03706984]
[1723886791509,0.3608,59370.0,59369.0,0.10410068]
[1723886794208,0.3608,59370.0,59369.0,0.16725168]
[1723886794605,0.10101782,59375.0,59372.0,0.063148]
[1723886794904,0.3608,59377.0,59375.0,0.063144]
[1723886794905,0.44501452,59377.0,59375.0,0.063144]
[1723886795094,0.3608,59377.0,59376.0,0.19350925]
[1723886795297,0.3608,59377.0,59376.0,0.26051104]
[1723886795894,0.3608,59377.0,59376.0,0.19350925]
[1723886796100,0.3608,59377.0,59376.0,0.26051104]
[1723886796412,0.3608,59377.0,59372.0,0.08499844]
[1723886796413,0.3708,59377.0,59374.0,0.16030179]
[1723886796705,0.3708,59377.0,59374.0,0.0933]
[1723886796706,0.05048058,59375.0,59374.0,0.0933]
[1723886796908,0.0933,59376.0,59374.0,0.03706543]
[1723886797203,0.4541,59376.0,59374.0,0.05024155]
[1723886798200,0.4541,59376.0,59374.0,0.05224155]
[1723886798402,0.4641,59376.0,59374.0,0.05224155]
[1723886798603,0.4641,59376.0,59374.0,0.05124155]
[1723886798910,0.4641,59376.0,59374.0,0.05224155]
[1723886799308,0.4641,59376.0,59374.0,0.002]
[1723886799499,0.4641,59376.0,59374.0,0.05224155]
[1723886800213,0.527244,59376.0,59374.0,0.05224155]
[1723886800509,0.0454,59375.0,59374.0,0.002]
[1723886800811,0.35269934,59375.0,59374.0,0.002]
[1723886801509,1.42797934,59375.0,59374.0,0.002]
[1723886801711,1.43827537,59375.0,59374.0,0.002]
[1723886801917,1.49508634,59375.0,59374.0,0.001]
[1723886802098,1.41097603,59375.0,59374.0,0.002]
[1723886804308,1.01097603,59375.0,59374.0,0.002]
[1723886805108,1.37177603,59375.0,59374.0,0.002]
[1723886805511,1.37177603,59375.0,59374.0,0.001]
[1723886805711,1.37177603,59375.0,59374.0,0.002]
[1723886806508,1.41987603,59375.0,59374.0,0.001]
[1723886806717,1.41987603,59375.0,59374.0,0.002]
[1723886808007,1.41987603,59375.0,59374.0,0.001]
[1723886808317,1.41987603,59375.0,59374.0,0.002]
[1723886809816,1.48302103,59375.0,59374.0,0.002]
[1723886810209,1.56713134,59375.0,59374.0,0.001]
[1723886810508,1.06185134,59375.0,59374.0,0.001]
[1723886811917,1.06185134,59375.0,59374.0,0.002]
[1723886812508,1.07104103,59375.0,59374.0,0.002]
[1723886812909,1.07104103,59375.0,59374.0,0.001]
[1723886813525,1.00789603,59375.0,59369.0,0.05024155]
[1723886813822,1.00789603,59375.0,59368.0,0.0002528]
[1723886813823,0.91459603,59375.0,59374.0,0.001]
[1723886814120,0.97774103,59375.0,59374.0,0.001]
[1723886814417,0.06315,59370.0,59368.0,0.0002528]
[1723886814616,0.3608,59369.0,59368.0,0.0002528]
[1723886814819,0.3608,59369.0,59355.0,0.14716444]
[1723886814820,0.063156,59365.0,59363.0,0.05024217]
[1723886815115,0.47619575,59364.0,59363.0,0.05024217]
[1723886815314,0.75619575,59364.0,59362.0,0.05024217]
[1723886815518,0.0933,59363.0,59362.0,0.05024217]
[1723886815813,0.436457,59363.0,59361.0,0.05024217]
[1723886816016,0.0933,59362.0,59361.0,0.05024217]
[1723886816211,0.1233,59362.0,59361.0,0.08731646]
[1723886816414,0.23691439,59362.0,59360.0,0.05024217]
[1723886816719,0.23691439,59362.0,59358.0,0.06700179]
[1723886816720,0.15646,59361.0,59358.0,0.06700179]
[1723886817020,0.14375539,59359.0,59358.0,0.06700179]
[1723886817317,0.1433,59359.0,59358.0,0.10407613]
[1723886817709,0.1433,59359.0,59358.0,0.06700179]
[1723886817910,0.1433,59359.0,59358.0,0.10407608]
[1723886818219,0.1433,59359.0,59358.0,0.03707429]
[1723886819223,0.1433,59359.0,59358.0,0.04307429]
[1723886819421,0.1433,59359.0,59358.0,0.04807429]
[1723886821417,0.1433,59359.0,59358.0,0.011]
[1723886827218,0.5041,59359.0,59358.0,0.011]
[1723886827420,0.5041,59359.0,59352.0,0.05021062]
[1723886827621,0.063169,59352.0,59349.0,0.05021062]
[1723886827820,0.063169,59352.0,59339.0,3.77128]
[1723886827821,0.0933,59350.0,59348.0,0.05021062]
[1723886828026,0.0933,59349.0,59347.0,0.05021062]
[1723886828528,0.063176,59346.0,59343.0,0.05019155]
[1723886828730,0.176476,59346.0,59342.0,0.05044435]
[1723886829025,0.0933,59343.0,59342.0,0.05044435]
[1723886829215,0.0933,59343.0,59342.0,0.0002528]
[1723886830031,0.0933,59343.0,59342.0,0.0142528]
[1723886830526,0.0933,59343.0,59342.0,0.0282528]
[1723886831429,0.0943,59343.0,59342.0,0.0282528]
[1723886835931,0.1043,59343.0,59342.0,0.0282528]
[1723886838439,0.0943,59343.0,59342.0,0.0282528]
[1723886838732,0.1443,59343.0,59342.0,0.0282528]
[1723886840430,0.1443,59343.0,59342.0,0.07844435]
[1723886842230,0.1443,59343.0,59342.0,0.0282528]
[1723886845744,0.0943,59343.0,59342.0,0.0282528]
[1723886846549,0.001,59343.0,59342.0,0.0282528]
[1723886848550,0.001,59343.0,59342.0,0.09525459]
[1723886849239,0.001,59343.0,59342.0,0.0282528]
[1723886850135,0.001,59343.0,59342.0,0.1215528]
[1723886853239,0.001,59343.0,59342.0,0.33390832]
[1723886855040,0.001,59343.0,59342.0,0.24990988]
[1723886858247,0.05138879,59343.0,59342.0,0.24990988]
[1723886858443,0.001,59343.0,59342.0,0.24990988]
[1723886858753,0.05138879,59343.0,59342.0,0.24990988]
[1723886858942,0.05138879,59343.0,59342.0,0.28699274]
[1723886859345,0.05138879,59343.0,59342.0,0.28699268]
[1723886861253,0.05138879,59343.0,59342.0,0.35017268]
[1723886862846,0.001,59343.0,59342.0,0.35017268]
[1723886866056,0.001,59343.0,59342.0,0.35017269]
[1723886867561,0.001,59343.0,59342.0,0.2744164]
[1723886868064,0.001,59343.0,59342.0,0.25687269]
[1723886868248,0.001,59343.0,59342.0,0.27441687]
[1723886870359,0.001,59343.0,59342.0,0.27441686]
[1723886870561,0.001,59343.0,59342.0,0.36771686]
[1723886870760,0.001,59343.0,59342.0,0.33063406]
[1723886871064,0.001,59343.0,59342.0,0.46846023]
[1723886871766,0.001,59343.0,59342.0,0.36771687]
[1723886872555,0.001,59343.0,59342.0,0.46844945]
[1723886874156,0.001,59343.0,59342.0,0.36771687]
[1723886874356,0.001,59343.0,59342.0,0.35017269]
[1723886874559,0.001,59343.0,59342.0,0.36771454]
[1723886874757,0.001,59343.0,59342.0,0.43176215]
[1723886875867,0.05038879,59351.0,59342.0,1.41582943]
[1723886876066,0.05038879,59352.0,59350.0,0.53801245]
[1723886876260,0.05038879,59352.0,59351.0,0.13853711]
[1723886876568,0.05038879,59352.0,59351.0,0.05462466]
[1723886877855,0.05038879,59353.0,59352.0,0.063169]
[1723886878165,0.05064159,59354.0,59352.0,0.11779366]
[1723886878365,0.05064159,59354.0,59353.0,0.03708281]
[1723886878667,0.05064159,59354.0,59353.0,0.03707671]
[1723886879065,0.0002528,59354.0,59353.0,0.03707671]
[1723886879864,0.0002528,59354.0,59353.0,0.06461272]
[1723886880268,0.0002528,59354.0,59353.0,0.27685566]
[1723886880869,0.0002528,59354.0,59353.0,0.28785566]
[1723886881065,0.0935528,59354.0,59353.0,0.28785566]
[1723886881269,0.0935528,59354.0,59353.0,0.05807671]
[1723886881664,0.0935528,59354.0,59353.0,0.021]
[1723886881871,0.0935528,59354.0,59353.0,0.05807636]
[1723886886182,0.0935528,59354.0,59353.0,0.021]
[1723886886476,0.0935528,59354.0,59353.0,0.05807609]
[1723886888681,0.0002528,59354.0,59353.0,0.05807609]
[1723886890390,0.0002528,59354.0,59353.0,0.12124409]
[1723886891482,0.0935528,59354.0,59353.0,0.12124409]
[1723886893085,0.0935528,59354.0,59353.0,0.18824257]
[1723886893486,0.1035528,59354.0,59353.0,0.18824458]
[1723886894288,0.1035528,59354.0,59353.0,0.18824842]
[1723886895090,0.3367198,59354.0,59353.0,0.07126724]
[1723886895289,0.1667198,59354.0,59353.0,0.07126724]
[1723886895481,0.1667198,59354.0,59353.0,0.021]
[1723886896491,0.17673372,59354.0,59353.0,0.021]
[1723886897379,0.0002528,59354.0,59353.0,0.021]
[1723886897584,0.0002528,59354.0,59353.0,0.07561208]
[1723886897783,0.0002528,59354.0,59353.0,0.15952453]
[1723886897988,0.0002528,59354.0,59353.0,0.20393802]
[1723886898185,0.0002528,59354.0,59353.0,0.07561208]
[1723886898586,0.0002528,59354.0,59353.0,0.07561034]
[1723886898797,0.0002528,59354.0,59353.0,0.07561043]
[1723886899880,0.0002528,59354.0,59353.0,0.05807526]
[1723886900086,0.0002528,59354.0,59353.0,0.07561087]
[1723886900894,0.0002528,59354.0,59353.0,0.05807526]
[1723886901495,0.0002528,59354.0,59353.0,0.07561029]
[1723886901699,0.0002528,59354.0,59353.0,0.15937704]
[1723886902893,0.0002528,59354.0,59353.0,0.25267704]
[1723886903197,0.0002528,59354.0,59353.0,0.38100677]
[1723886903399,0.0002528,59354.0,59353.0,0.44417477]
[1723886903894,0.0002528,59354.0,59353.0,0.42663974]
[1723886904092,0.0002528,59354.0,59353.0,0.36040819]
[1723886904793,0.0002528,59354.0,59353.0,0.34287299]
[1723886906194,0.0002528,59354.0,59353.0,0.42671625]
[1723886906393,0.0002528,59354.0,59353.0,0.34287588]
[1723886907096,0.0002528,59354.0,59353.0,0.34287599]
[1723886910905,0.0002528,59354.0,59353.0,0.34287438]
[1723886911508,0.0002528,59354.0,59353.0,0.30579901]
[1723886911692,0.0002528,59354.0,59353.0,0.34287403]
[1723886912297,0.0002528,59354.0,59353.0,0.36040933]
[1723886913406,0.0002528,59354.0,59353.0,0.36040961]
[1723886917208,0.0002528,59354.0,59353.0,0.40691226]
[1723886918110,0.0002528,59354.0,59353.0,0.42444749]
[1723886918604,0.0002528,59354.0,59353.0,0.40691226]
[1723886919201,0.0002528,59354.0,59353.0,0.42444754]
[1723886919497,0.0002528,59354.0,59353.0,0.40691226]
[1723886919910,0.0933,59361.0,59360.0,0.063161]
[1723886920218,0.0933,59361.0,59360.0,0.1002337]
[1723886920612,0.0933,59361.0,59360.0,0.063161]
[1723886920907,0.0933,59361.0,59360.0,0.10023194]
[1723886921114,0.0933,59361.0,59360.0,0.10223194]
[1723886921303,0.0933,59361.0,59360.0,0.10523194]
[1723886922508,0.2633,59361.0,59360.0,0.10523194]
[1723886923010,0.2633,59361.0,59360.0,0.17226832]
[1723886923203,0.2633,59361.0,59360.0,0.17226868]
[1723886923403,0.2633,59361.0,59360.0,0.10523194]
[1723886924311,0.2633,59361.0,59360.0,0.068161]
[1723886924506,0.2633,59361.0,59360.0,0.10523303]
[1723886924706,0.2633,59361.0,59360.0,0.17226746]
[1723886926207,0.2633,59361.0,59360.0,0.10523303]
[1723886927414,0.22050828,59361.0,59360.0,0.10523303]
[1723886927613,0.31380828,59361.0,59360.0,0.10523303]
[1723886927811,0.14380828,59361.0,59360.0,0.10523303]
[1723886928413,0.14380828,59361.0,59360.0,0.068161]
[1723886928611,0.15380828,59361.0,59360.0,0.10523361]
[1723886928811,0.14380828,59361.0,59360.0,0.10523361]
[1723886930327,0.05050828,59361.0,59360.0,0.10523361]
[1723886931020,0.05050828,59362.0,59360.0,0.10523361]
[1723886931315,0.05050828,59362.0,59361.0,0.03707261]
[1723886932513,0.05050828,59362.0,59361.0,0.03907261]
[1723886933318,0.05050117,59362.0,59361.0,0.002]
[1723886933509,0.05050117,59362.0,59361.0,0.03907188]
[1723886934315,0.05050117,59362.0,59361.0,0.04007188]
[1723886936218,0.05050117,59363.0,59361.0,0.04007188]
[1723886936424,0.05050117,59363.0,59362.0,0.03707188]
[1723886937019,0.15226149,59365.0,59362.0,0.03707188]
[1723886937020,0.05050117,59364.0,59362.0,0.03707188]
[1723886937220,0.05050117,59364.0,59363.0,0.1041352]
[1723886937825,0.20276266,59365.0,59363.0,0.03707188]
[1723886938125,0.20276266,59365.0,59362.0,0.001]
[1723886938126,0.20276266,59365.0,59364.0,0.1041311]
[1723886939028,0.20476266,59365.0,59364.0,0.1041311]
[1723886939728,0.15426149,59365.0,59364.0,0.1041311]
[1723886940732,0.16526149,59365.0,59364.0,0.1041311]
[1723886941114,0.16626149,59365.0,59364.0,0.1041311]
[1723886941919,0.07296149,59365.0,59364.0,0.1041311]
[1723886942118,0.16626149,59365.0,59364.0,0.1041311]
[1723886942333,0.16626149,59365.0,59364.0,0.03707188]
[1723886948239,0.23355724,59365.0,59364.0,0.03707104]
[1723886948721,0.16626149,59365.0,59364.0,0.03707104]
[1723886949325,0.23355724,59365.0,59364.0,0.03707104]
[1723886952239,0.16626149,59365.0,59364.0,0.03707104]
[1723886952537,0.16626149,59365.0,59364.0,0.03707092]
[1723886952736,0.11746149,59365.0,59364.0,0.03707092]
[1723886953927,0.02416149,59365.0,59364.0,0.03707092]
[1723886954532,0.014,59365.0,59364.0,0.03707092]
[1723886954736,0.004,59365.0,59364.0,0.03707092]
[1723886956540,0.004,59365.0,59364.0,0.03707036]
[1723886958632,0.014,59365.0,59364.0,0.03707036]
[1723886959337,0.08129575,59365.0,59364.0,0.03707036]